bitfinex/quotes_SOLUSD_20250830
["timestamp","ask_amount","ask_price","bid_price","bid_amount"]
[1756523704871,4.64634762,205.24,205.21,0.66]
[1756523705166,4.64634762,205.22,205.18,0.03]
[1756523705336,4.64634762,205.19,205.18,0.03]
[1756523706357,4.88634762,205.19,205.18,0.03]
[1756523706659,9.75987946,205.19,205.18,0.03]
[1756523707648,9.51987946,205.19,205.18,0.03]
[1756523707848,9.75987946,205.19,205.18,0.03]
[1756523708531,131.6,205.22,205.18,0.03]
[1756523708532,4.87326014,205.21,205.18,0.03]
[1756523708735,4.64634762,205.19,205.18,0.03]
[1756523709155,9.51987946,205.19,205.18,0.03]
[1756523709939,9.75987946,205.19,205.18,0.03]
[1756523713157,9.51987946,205.19,205.18,0.03]
[1756523715057,4.64634762,205.19,205.18,0.03]
[1756523715273,4.64634762,205.19,205.18,0.69]
[1756523715973,4.64634762,205.19,205.18,0.03]
[1756523718367,4.64634762,205.19,205.18,0.69]
[1756523718884,4.64634762,205.19,205.18,0.03]
[1756523719952,9.51987946,205.19,205.18,0.03]
[1756523724088,9.51987946,205.19,205.18,0.69]
[1756523724089,4.64634762,205.19,205.18,0.69]
[1756523725097,4.64634762,205.19,205.18,0.03]
[1756523726295,9.51987946,205.19,205.18,0.03]
[1756523728389,9.75987946,205.19,205.18,0.03]
[1756523732008,9.51987946,205.19,205.18,0.03]
[1756523732831,48.35987946,205.19,205.18,0.7]
[1756523733104,38.84,205.19,205.18,0.7]
[1756523733276,43.48634762,205.19,205.18,0.7]
[1756523733917,48.59987946,205.19,205.18,0.03]
[1756523734994,48.35987946,205.19,205.18,0.03]
[1756523736815,48.59987946,205.19,205.18,0.03]
[1756523738104,26.0,205.16,205.15,0.03]
[1756523738289,26.0,205.16,205.13,0.03]
[1756523738290,26.0,205.14,205.13,0.03]
[1756523738487,64.84,205.14,205.13,0.03]
[1756523738703,69.48634762,205.14,205.13,0.03]
[1756523738888,74.36106732,205.14,205.13,0.03]
[1756523750524,69.7147197,205.14,205.13,0.03]
[1756523750716,74.36106732,205.14,205.13,0.03]
[1756523751220,35.52106732,205.14,205.13,0.03]
[1756523751520,35.52106732,205.14,205.13,0.7]
[1756523751521,48.36106732,205.14,205.13,0.7]
[1756523751732,4.8747197,205.14,205.13,0.7]
[1756523751905,230.09194029,205.26,205.13,0.7]
[1756523751906,5.48194029,205.26,205.13,0.7]
[1756523752223,9.00795091,205.29,205.14,0.14216157]
[1756523752224,0.06,205.27,205.14,0.14216157]
[1756523752393,4.64634762,205.23,205.17,4.78850919]
[1756523752702,4.64634762,205.23,205.19,0.14216157]
[1756523752910,24.94,205.27,205.21,0.14216157]
[1756523753223,0.06,205.27,205.23,0.14216157]
[1756523753393,4.70634762,205.24,205.23,0.81216157]
[1756523754302,0.06,205.24,205.23,0.81216157]
[1756523754621,4.70634762,205.24,205.23,0.81216157]
[1756523755197,0.06,205.24,205.23,0.81216157]
[1756523755397,4.70634762,205.24,205.23,0.81216157]
[1756523755627,0.06,205.24,205.23,0.81216157]
[1756523755800,4.70634762,205.24,205.23,0.81216157]
[1756523756130,4.70634762,205.24,205.23,0.14216157]
[1756523756332,4.70634762,205.24,205.23,0.81216157]
[1756523757431,4.70634762,205.24,205.23,0.14216157]
[1756523757641,136.30634762,205.24,205.23,0.14216157]
[1756523757947,141.17881933,205.24,205.19,0.67]
[1756523758138,4.64634762,205.2,205.19,0.67]
[1756523758752,4.64634762,205.2,205.17,0.67]
[1756523759048,0.7,205.23,205.18,0.81216157]
[1756523759049,4.64634762,205.19,205.18,0.81216157]
[1756523759551,4.87281941,205.22,205.19,0.14216157]
[1756523759760,4.64634762,205.2,205.19,0.14216157]
[1756523761218,40.82598958,205.2,205.13,0.03]
[1756523761545,4.64634762,205.14,205.13,0.03]
[1756523762121,4.64634762,205.15,205.13,0.73]
[1756523762325,38.98,205.18,205.15,0.14216157]
[1756523762519,38.98,205.18,205.17,0.14216157]
[1756523762719,4.64634762,205.18,205.17,0.14216157]
[1756523762927,0.66,205.18,205.13,0.03]
[1756523763144,4.64634762,205.14,205.13,0.03]
[1756523764032,4.87450398,205.15,205.13,0.03]
[1756523764237,4.64634762,205.14,205.13,0.03]
[1756523765441,4.64634762,205.18,205.14,0.14216157]
[1756523765638,4.64634762,205.18,205.16,0.14216157]
[1756523766023,4.64634762,205.2,205.18,0.14216157]
[1756523766228,4.64634762,205.2,205.19,0.84216157]
[1756523766439,4.64634762,205.2,205.19,0.14216157]
[1756523767873,9.95269524,205.2,205.19,0.14216157]
[1756523768036,136.47353184,205.19,205.13,0.17216157]
[1756523768358,4.64634762,205.14,205.13,0.03]
[1756523769259,4.64634762,205.14,205.13,0.17216157]
[1756523770542,9.52089266,205.15,205.13,0.17216157]
[1756523770939,4.87400692,205.17,205.13,0.17216157]
[1756523771141,4.64634762,205.14,205.13,0.17216157]
[1756523771357,4.64634762,205.14,205.13,0.03]
[1756523771554,0.66,205.16,205.13,0.03]
[1756523771732,4.64634762,205.15,205.13,0.03]
[1756523772060,4.64634762,205.16,205.14,0.14216157]
[1756523772441,131.6,205.19,205.16,0.14216157]
[1756523772757,0.06,205.24,205.18,4.78850919]
[1756523772978,0.06,205.24,205.23,9.66109117]
[1756523773129,0.06,205.24,205.23,10.36109117]
[1756523775248,0.06,205.24,205.23,5.71474355]
[1756523775763,0.06,205.29,205.24,13.73775558]
[1756523776059,0.06,205.29,205.24,19.0841032]
[1756523776271,0.06,205.29,205.26,0.14216157]
[1756523776471,0.06,205.29,205.26,0.84216157]
[1756523777353,0.06,205.29,205.26,5.71403139]
[1756523777537,4.64634762,205.28,205.23,4.646348]
[1756523777895,4.70634762,205.29,205.25,0.7]
[1756523778230,0.06,205.29,205.25,0.7]
[1756523778428,4.64634762,205.28,205.25,0.7]
[1756523778847,0.06,205.29,205.25,0.7]
[1756523779050,4.64634762,205.28,205.25,0.7]
[1756523780741,4.64634762,205.28,205.26,0.14216157]
[1756523781973,4.70634762,205.27,205.26,0.14216157]
[1756523782281,5.36634762,205.27,205.26,0.14216157]
[1756523782979,4.70634762,205.27,205.23,0.14216157]
[1756523783270,4.64634762,205.26,205.23,0.84216157]
[1756523784071,4.70634762,205.27,205.23,0.84216157]
[1756523784858,0.06,205.27,205.23,0.84216157]
[1756523785067,4.70634762,205.27,205.23,0.84216157]
[1756523786359,5.36634762,205.27,205.23,0.84216157]
[1756523786667,4.64634762,205.26,205.23,0.84216157]
[1756523786873,0.72,205.27,205.23,0.84216157]
[1756523787052,4.64634762,205.26,205.23,0.84216157]
[1756523788265,0.72,205.27,205.23,0.84216157]
[1756523788467,4.64634762,205.26,205.23,0.84216157]
[1756523789469,0.72,205.27,205.23,0.84216157]
[1756523789675,4.64634762,205.26,205.22,39.54216157]
[1756523789868,4.64634762,205.26,205.22,40.24216157]
[1756523790280,0.72,205.27,205.22,40.24216157]
[1756523790575,4.64634762,205.26,205.22,40.24216157]
[1756523790752,0.72,205.27,205.24,0.14216157]
[1756523790753,4.70634762,205.27,205.24,0.14216157]
[1756523790948,0.06,205.27,205.24,0.14216157]
[1756523791177,0.06,205.27,205.23,4.64634762]
[1756523791178,0.06,205.27,205.26,0.14216157]
[1756523792552,5.35634762,205.27,205.26,0.14216157]
[1756523793489,10.22800593,205.27,205.13,12.21686791]
[1756523793659,0.65,205.26,205.22,0.03]
[1756523793997,0.06,205.26,205.23,0.14216157]
[1756523794150,4.64634762,205.25,205.23,0.14216157]
[1756523794573,0.71,205.26,205.23,0.14216157]
[1756523795073,0.06,205.26,205.23,0.82216157]
[1756523795991,0.06,205.26,205.25,0.14216157]
[1756523798266,0.06,205.26,205.23,0.14216157]
[1756523798481,4.70634762,205.26,205.23,0.14216157]
[1756523798792,0.06,205.26,205.23,0.14216157]
[1756523799073,0.06,205.26,205.23,0.82216157]
[1756523799283,0.06,205.26,205.23,5.69474169]
[1756523799493,0.06,205.26,205.25,0.14216157]
[1756523799655,0.06,205.26,205.25,0.82216157]
[1756523801585,0.06,205.26,205.25,5.69426875]
[1756523802278,0.06,205.27,205.26,13.73775558]
[1756523802484,0.06,205.27,205.26,19.0641032]
[1756523802985,0.06,205.27,205.26,58.3841032]
[1756523803480,0.06,205.27,205.26,68.03222182]
[1756523803882,0.06,205.27,205.26,63.3858742]
[1756523804098,0.06,205.27,205.26,68.03222182]
[1756523805273,0.06,205.29,205.27,0.14216157]
[1756523805471,0.06,205.29,205.28,23.93549836]
[1756523806479,0.06,205.29,205.28,63.19549836]
[1756523807564,0.06,205.29,205.28,65.14714636]
[1756523809199,0.06,205.29,205.28,65.10714636]
[1756523810870,0.06,205.29,205.28,60.46079874]
[1756523811089,0.06,205.29,205.28,65.10714636]
[1756523811397,0.1,205.36,205.33,0.14216157]
[1756523811566,0.1,205.36,205.35,0.14216157]
[1756523812505,0.1,205.36,205.35,5.46850919]
[1756523812677,0.1,205.36,205.35,9.65824378]
[1756523813899,0.1,205.36,205.35,10.33824378]
[1756523814286,0.1,205.36,205.35,9.65824378]
[1756523815103,0.1,205.36,205.35,48.73824378]
[1756523815302,0.65,205.47,205.39,13.73775558]
[1756523815492,1.79807706,205.49,205.46,0.14216157]
[1756523815796,1.79807706,205.49,205.48,0.14216157]
[1756523815982,1.14807706,205.49,205.48,0.14216157]
[1756523816387,1.79807706,205.49,205.48,0.14216157]
[1756523816594,1.79807706,205.49,205.48,39.20216157]
[1756523816996,1.14807706,205.49,205.48,39.20216157]
[1756523817376,1.79807706,205.49,205.48,0.14216157]
[1756523817577,1.79807706,205.49,205.48,39.20216157]
[1756523818795,1.14807706,205.49,205.48,39.20216157]
[1756523820384,1.79807706,205.49,205.45,4.78850919]
[1756523820709,4.86704863,205.47,205.44,39.0]
[1756523820894,4.64634762,205.45,205.43,39.0]
[1756523821220,0.7,205.44,205.43,39.0]
[1756523822007,0.7,205.44,205.43,39.14216157]
[1756523822208,0.7,205.44,205.43,39.12216157]
[1756523822932,0.7,205.48,205.44,0.14216157]
[1756523823218,1.84807706,205.49,205.46,0.14216157]
[1756523823516,1.84807706,205.49,205.48,0.14216157]
[1756523823686,1.14807706,205.49,205.48,0.14216157]
[1756523825000,6.49442468,205.49,205.48,39.08216157]
[1756523825207,11.36084153,205.49,205.4,4.64634762]
[1756523825410,4.64634762,205.46,205.41,43.56634762]
[1756523825623,0.7,205.45,205.41,43.56634762]
[1756523826533,0.7,205.48,205.42,4.64634762]
[1756523826827,4.64634762,205.47,205.43,0.14216157]
[1756523827003,0.7,205.46,205.45,0.14216157]
[1756523828713,0.7,205.48,205.45,0.14216157]
[1756523829028,4.64634762,205.48,205.45,0.14216157]
[1756523829213,0.7,205.47,205.45,0.14216157]
[1756523830739,5.34634762,205.46,205.41,0.14216157]
[1756523831029,5.34634762,205.46,205.42,0.14216157]
[1756523831030,0.7,205.46,205.42,0.14216157]
[1756523831239,4.64634762,205.43,205.42,0.14216157]
[1756523831411,5.34634762,205.43,205.42,0.14216157]
[1756523831598,5.34634762,205.43,205.39,38.86]
[1756523831796,17.03421719,205.47,205.39,38.86]
[1756523831797,4.64634762,205.41,205.39,38.86]
[1756523832000,4.64634762,205.44,205.4,38.86]
[1756523832335,0.7,205.44,205.41,0.14216157]
[1756523832498,4.64634762,205.42,205.36,0.03]
[1756523832697,4.64634762,205.4,205.36,38.89]
[1756523832952,4.64634762,205.38,205.37,38.86]
[1756523833109,5.34634762,205.38,205.37,38.86]
[1756523833314,0.7,205.38,205.37,39.00216157]
[1756523833640,4.64634762,205.4,205.37,38.86]
[1756523833813,4.64634762,205.41,205.37,38.86]
[1756523834001,0.7,205.4,205.37,38.86]
[1756523834203,0.7,205.4,205.38,0.14216157]
[1756523837311,0.7,205.4,205.36,0.17216157]
[1756523837512,0.7,205.4,205.38,0.14216157]
[1756523837714,4.64634762,205.41,205.38,0.14216157]
[1756523837913,0.7,205.39,205.38,0.14216157]
[1756523838142,4.64634762,205.4,205.38,0.14216157]
[1756523838304,0.7,205.41,205.38,0.14216157]
[1756523838632,4.64634762,205.4,205.38,0.14216157]
[1756523838938,5.34634762,205.4,205.38,0.14216157]
[1756523840330,0.7,205.39,205.38,0.14216157]
[1756523840724,5.34634762,205.4,205.38,0.14216157]
[1756523841837,5.34634762,205.4,205.36,0.17216157]
[1756523842043,5.34634762,205.4,205.38,0.14216157]
[1756523842243,0.7,205.44,205.38,5.01105288]
[1756523842448,4.64634762,205.43,205.38,5.73105288]
[1756523842646,0.7,205.43,205.38,9.6574005]
[1756523842852,0.7,205.48,205.42,0.14216157]
[1756523843059,4.64634762,205.47,205.43,39.00216157]
[1756523843265,0.7,205.47,205.43,40.95276257]
[1756523843465,0.7,205.47,205.43,41.67276257]
[1756523843960,6.55442468,205.49,205.43,46.31911019]
[1756523844460,1.90807706,205.49,205.45,0.14216157]
[1756523844647,6.55442468,205.49,205.45,0.14216157]
[1756523844836,1.90807706,205.49,205.45,0.14216157]
[1756523845157,6.55442468,205.49,205.45,0.14216157]
[1756523845654,1.20807706,205.49,205.45,0.14216157]
[1756523845865,1.90807706,205.49,205.45,6.69658557]
[1756523846265,1.90807706,205.49,205.47,0.14216157]
[1756523848858,1.20807706,205.49,205.47,0.14216157]
[1756523850360,1.90807706,205.49,205.47,0.14216157]
[1756523852241,0.68,205.48,205.47,0.14216157]
[1756523852435,1.20807706,205.49,205.47,0.14216157]
[1756523852657,1.20807706,205.49,205.47,39.67216157]
[1756523853269,1.20807706,205.49,205.47,38.98216157]
[1756523854965,0.68,205.48,205.47,38.98216157]
[1756523855170,1.20807706,205.49,205.48,0.14216157]
[1756523856863,1.20807706,205.49,205.48,0.83216157]
[1756523857077,1.20807706,205.49,205.48,10.34516287]
[1756523857449,1.20807706,205.49,205.48,44.53881525]
[1756523857650,1.20807706,205.49,205.48,43.84881525]
[1756523858453,1.20807706,205.49,205.48,38.98216157]
[1756523861884,1.20807706,205.49,205.48,48.49516287]
[1756523862178,1.20807706,205.49,205.48,43.62850919]
[1756523862549,1.20807706,205.49,205.48,48.49516287]
[1756523862855,1.20807706,205.49,205.48,43.84881525]
[1756523863076,1.20807706,205.49,205.48,48.49516287]
[1756523865057,1.20807706,205.49,205.48,43.84881525]
[1756523867382,1.20807706,205.49,205.48,48.49516287]
[1756523867563,1.20807706,205.49,205.48,49.18516287]
[1756523868483,1.20807706,205.49,205.48,54.51150987]
[1756523870467,1.20807706,205.49,205.48,49.86516225]
[1756523870684,1.20807706,205.49,205.48,54.51150987]
[1756523871183,1.20807706,205.49,205.48,5.46850857]
[1756523871359,1.20807706,205.49,205.48,38.96216157]
[1756523875270,1.20807706,205.49,205.48,0.14216157]
[1756523875474,1.20807706,205.49,205.48,38.96216157]
[1756523875982,1.20807706,205.49,205.48,43.82881525]
[1756523877181,1.20807706,205.49,205.48,49.16516287]
[1756523877368,1.20807706,205.49,205.48,53.81150987]
[1756523878583,1e-08,205.49,205.48,53.81150987]
[1756523879591,1e-08,205.49,205.48,58.67474423]
[1756523881577,1e-08,205.49,205.48,53.33839661]
[1756523881794,1e-08,205.49,205.48,57.96474423]
[1756523881993,1e-08,205.49,205.48,72.23033824]
[1756523882300,0.1,205.5,205.49,13.73775558]
[1756523882301,1e-08,205.5,205.49,13.73775558]
[1756523882512,1e-08,205.5,205.49,19.0541032]
[1756523882795,1e-08,205.5,205.49,14.40775558]
[1756523882982,1e-08,205.5,205.49,23.92052005]
[1756523883408,1e-08,205.5,205.49,62.72052005]
[1756523884773,1e-08,205.5,205.49,23.92052005]
[1756523884972,1e-08,205.5,205.49,5.00857842]
[1756523885204,1e-08,205.5,205.49,43.80857842]
[1756523885587,1e-08,205.5,205.49,48.45492604]
[1756523886394,1e-08,205.5,205.49,43.80857842]
[1756523886603,1e-08,205.5,205.49,48.45492604]
[1756523886902,1e-08,205.5,205.49,49.12492604]
[1756523887302,1e-08,205.5,205.49,43.80857842]
[1756523887503,1e-08,205.5,205.49,48.45492604]
[1756523891910,1e-08,205.5,205.49,53.31945204]
[1756523893598,1e-08,205.5,205.49,53.29945204]
[1756523897308,1e-08,205.5,205.49,48.65310442]
[1756523897506,1e-08,205.5,205.49,14.51945204]
[1756523897696,1e-08,205.5,205.49,48.65310442]
[1756523897902,1e-08,205.5,205.49,53.29945204]
[1756523899821,1e-08,205.5,205.49,67.56504605]
[1756523901204,1e-08,205.5,205.49,24.13869843]
[1756523901522,1e-08,205.5,205.49,67.56504605]
[1756523902723,1e-08,205.5,205.49,62.91869843]
[1756523903042,1e-08,205.5,205.49,67.56504605]
[1756523903820,1e-08,205.5,205.49,58.05228158]
[1756523904027,1e-08,205.5,205.49,62.6986292]
[1756523904201,1e-08,205.5,205.49,5.00668757]
[1756523904402,0.68000001,205.5,205.49,29.64668757]
[1756523905014,0.68000001,205.5,205.49,43.824526]
[1756523905222,0.68000001,205.5,205.49,43.96668757]
[1756523905431,1e-08,205.5,205.49,43.96668757]
[1756523905813,1e-08,205.5,205.49,61.18305774]
[1756523906017,1e-08,205.5,205.49,66.04947459]
[1756523906505,1e-08,205.5,205.49,61.18305774]
[1756523906705,1e-08,205.5,205.49,65.37947459]
[1756523907425,1e-08,205.5,205.49,67.03822438]
[1756523907641,0.68000001,205.5,205.49,4.864526]
[1756523907816,0.68000001,205.5,205.45,0.03]
[1756523907817,30.86712742,205.46,205.32,0.67]
[1756523907999,4.60952595,205.37,205.33,4.894778]
[1756523908418,5.28952595,205.37,205.33,0.03]
[1756523908713,5.28952595,205.37,205.34,39.22]
[1756523909026,5.28952595,205.37,205.33,0.03]
[1756523909228,8.92744338,205.37,205.33,0.03]
[1756523909428,26.0,205.36,205.33,0.03]
[1756523909628,4.60952595,205.34,205.33,0.03]
[1756523909815,3.63791743,205.35,205.33,0.03]
[1756523910012,1.952219,205.37,205.35,0.14216157]
[1756523910223,1.952219,205.37,205.36,18.34728153]
[1756523910440,1.952219,205.37,205.36,14.40775558]
[1756523910728,4.60952595,205.42,205.37,0.14216157]
[1756523911135,5.26952595,205.42,205.37,0.84216157]
[1756523911309,4.60952595,205.41,205.37,0.14216157]
[1756523911909,5.26952595,205.41,205.37,0.14216157]
[1756523912213,4.60952595,205.42,205.37,39.94216157]
[1756523912415,5.26952595,205.42,205.37,39.94216157]
[1756523912619,0.66,205.41,205.37,39.94216157]
[1756523912918,5.26952595,205.41,205.37,44.81139178]
[1756523913115,4.60952595,205.38,205.33,39.83]
[1756523913425,0.66,205.45,205.37,4.75168752]
[1756523913732,0.66,205.46,205.41,0.14216157]
[1756523914041,5.26952595,205.46,205.43,0.14216157]
[1756523914205,4.60952595,205.45,205.43,0.14216157]
[1756523914615,5.26952595,205.46,205.43,0.14216157]
[1756523915111,0.66,205.46,205.43,0.14216157]
[1756523915310,5.26952595,205.46,205.43,0.14216157]
[1756523915735,4.60952595,205.48,205.43,5.70994213]
[1756523915907,4.60952595,205.49,205.45,0.14216157]
[1756523916319,0.66,205.48,205.45,0.14216157]
[1756523916624,1e-08,205.5,205.45,0.14216157]
[1756523916820,1e-08,205.5,205.47,0.14216157]
[1756523917018,1e-08,205.5,205.49,0.14216157]
[1756523918407,1e-08,205.5,205.49,0.84216157]
[1756523918608,1e-08,205.5,205.49,0.14216157]
[1756523919015,1e-08,205.5,205.49,4.75168657]
[1756523920737,1e-08,205.5,205.49,0.14216157]
[1756523920915,1e-08,205.5,205.49,5.00857842]
[1756523921741,5.26952596,205.5,205.49,5.00857842]
[1756523921915,0.66000001,205.5,205.49,5.00857842]
[1756523922117,5.26952596,205.5,205.49,5.00857842]
[1756523922444,5.26952596,205.5,205.47,4.86674421]
[1756523922608,4.60952595,205.48,205.47,4.86674421]
[1756523922937,5.26952595,205.48,205.47,5.00890578]
[1756523923728,4.60952595,205.48,205.47,5.00890578]
[1756523924058,5.26952595,205.48,205.47,5.00890578]
[1756523926314,4.60952595,205.48,205.47,5.00890578]
[1756523926516,5.26952595,205.48,205.47,5.00890578]
[1756523926931,4.60952595,205.48,205.47,5.00890578]
[1756523927145,4.60952596,205.5,205.48,0.14216157]
[1756523928110,4.60952595,205.49,205.48,0.14216157]
[1756523928612,4.60952595,205.49,205.48,5.00881525]
[1756523928807,1e-08,205.5,205.48,5.00881525]
[1756523929025,1e-08,205.5,205.49,0.84216157]
[1756523929426,1e-08,205.5,205.49,0.14216157]
[1756523929818,4.60952596,205.5,205.49,0.14216157]
[1756523930515,4.60952596,205.5,205.49,5.00857842]
[1756523931024,4.60952596,205.5,205.49,0.14216157]
[1756523931240,5.26952596,205.5,205.48,0.14216157]
[1756523931428,5.26952595,205.49,205.48,0.14216157]
[1756523931626,4.60952595,205.49,205.48,0.14216157]
[1756523931832,4.60952595,205.49,205.47,4.86665384]
[1756523932042,4.60952595,205.49,205.48,0.14216157]
[1756523932743,5.26952595,205.49,205.48,5.00881525]
[1756523933246,1e-08,205.5,205.48,5.00881525]
[1756523933425,4.60952595,205.49,205.48,5.00881525]
[1756523934245,1e-08,205.5,205.48,5.70881525]
[1756523934448,1e-08,205.5,205.49,0.7]
[1756523934741,1e-08,205.5,205.49,5.56641685]
[1756523934931,1e-08,205.5,205.49,5.70857842]
[1756523937655,1e-08,205.5,205.49,9.61810442]
[1756523937827,1e-08,205.5,205.49,10.31810442]
[1756523940951,1e-08,205.5,205.49,5.70857842]
[1756523941162,1e-08,205.5,205.49,10.37810442]
[1756523941330,1e-08,205.5,205.49,9.67810442]
[1756523941535,1e-08,205.5,205.49,14.99763037]
[1756523942656,0.06,205.53,205.5,0.14216157]
[1756523942857,0.06,205.53,205.52,0.14216157]
[1756523943150,1e-08,205.53,205.52,14.44775558]
[1756523943354,1e-08,205.53,205.52,19.05728153]
[1756523944027,1e-08,205.53,205.52,21.00664753]
[1756523944849,1e-08,205.53,205.52,25.87235403]
[1756523945237,1e-08,205.53,205.52,51.77676002]
[1756523949046,1e-08,205.53,205.52,47.16723407]
[1756523949246,1e-08,205.53,205.52,51.77676002]
[1756523950258,1e-08,205.53,205.52,49.82739402]
[1756523952176,1e-08,205.53,205.52,10.32739402]
[1756523952368,1e-08,205.53,205.52,49.68739402]
[1756523957441,1e-08,205.53,205.52,10.32739402]
[1756523957642,1e-08,205.53,205.52,49.60739402]
[1756523959864,1e-08,205.53,205.52,49.56739402]
[1756523961370,0.76,205.58,205.52,49.56739402]
[1756523961371,0.06,205.58,205.53,13.73775558]
[1756523961573,0.76,205.58,205.55,0.14216157]
[1756523961744,0.06,205.58,205.57,0.14216157]
[1756523961947,0.76,205.58,205.57,0.14216157]
[1756523962164,0.76,205.58,205.57,5.0066846]
[1756523963957,0.76,205.58,205.52,0.03]
[1756523963958,5.36952595,205.58,205.52,0.03]
[1756523964150,4.60952595,205.53,205.52,0.03]
[1756523964575,5.30952595,205.53,205.52,0.03]
[1756523964774,5.30952595,205.53,205.52,0.17216157]
[1756523964954,5.30952595,205.53,205.52,0.03]
[1756523965572,0.7,205.53,205.52,0.03]
[1756523965770,4.60952595,205.53,205.52,0.17216157]
[1756523965967,0.06,205.56,205.53,4.86546976]
[1756523966167,0.06,205.58,205.54,44.74168752]
[1756523966369,0.06,205.58,205.56,0.14216157]
[1756523966874,0.7,205.64,205.57,44.74168752]
[1756523967181,5.30952595,205.64,205.6,0.14216157]
[1756523967378,5.30952595,205.63,205.6,39.40216157]
[1756523967684,4.60952595,205.63,205.6,39.40216157]
[1756523967854,5.30952595,205.65,205.6,44.01168752]
[1756523968187,5.30952595,205.65,205.62,0.14216157]
[1756523968487,4.60952595,205.68,205.64,0.14216157]
[1756523968667,4.60952595,205.67,205.64,0.14216157]
[1756523968860,5.30952595,205.67,205.64,0.14216157]
[1756523969175,0.7,205.67,205.64,0.14216157]
[1756523969373,5.30952595,205.67,205.64,0.14216157]
[1756523969880,5.30952595,205.67,205.66,0.14216157]
[1756523970178,0.7,205.67,205.66,0.14216157]
[1756523970767,4.60952595,205.68,205.66,0.14216157]
[1756523971079,5.28952595,205.68,205.66,0.14216157]
[1756523971296,5.28952595,205.67,205.66,0.14216157]
[1756523971861,5.28952595,205.67,205.64,5.00490919]
[1756523972070,4.60952595,205.66,205.64,5.00490919]
[1756523972581,0.68,205.67,205.64,5.00490919]
[1756523972757,5.28952595,205.67,205.64,5.00490919]
[1756523973467,4.60952595,205.66,205.64,5.00490919]
[1756523973883,5.28952595,205.67,205.64,5.00490919]
[1756523974477,0.68,205.67,205.64,5.00490919]
[1756523974678,5.28952595,205.67,205.64,5.00490919]
[1756523976992,30.86096274,205.73,205.64,5.00490919]
[1756523977203,4.60952595,205.69,205.64,5.69490919]
[1756523977393,5.28952595,205.69,205.64,10.30443514]
[1756523977594,5.28952595,205.69,205.64,5.69490919]
[1756523977796,4.60952595,205.69,205.66,0.14216157]
[1756523977983,4.60952595,205.69,205.66,5.00439898]
[1756523978496,5.28952595,205.69,205.66,5.00439898]
[1756523978997,4.60952595,205.69,205.66,5.00439898]
[1756523979300,131.6,205.72,205.66,0.14216157]
[1756523979479,4.60952595,205.67,205.66,0.14216157]
[1756523979804,4.60952595,205.67,205.64,0.14216157]
[1756523979983,4.60952595,205.67,205.64,0.83216157]
[1756523980184,0.68,205.7,205.64,0.83216157]
[1756523980385,0.68,205.7,205.64,5.69497567]
[1756523980590,4.60952595,205.68,205.64,5.69497567]
[1756523981479,4.60952595,205.69,205.65,0.69]
[1756523981705,4.60952595,205.69,205.66,0.14216157]
[1756523982283,4.60952595,205.69,205.66,0.83216157]
[1756523982805,5.34952595,205.69,205.66,5.00438864]
[1756523983700,0.06,205.69,205.66,5.69438864]
[1756523984084,4.60952595,205.68,205.66,5.69438864]
[1756523984485,4.66952595,205.69,205.66,5.69438864]
[1756523985214,0.06,205.69,205.66,5.69438864]
[1756523985405,4.66952595,205.69,205.66,5.69438864]
[1756523985616,0.06,205.69,205.66,5.69438864]
[1756523986302,0.06,205.69,205.66,5.00438864]
[1756523986785,0.06,205.69,205.66,5.69438864]
[1756523988406,0.06,205.69,205.68,0.14216157]
[1756523988586,0.06,205.69,205.68,0.83216157]
[1756523988788,0.06,205.69,205.68,5.44168752]
[1756523989211,0.06,205.69,205.68,0.83216157]
[1756523990492,0.06,205.69,205.68,5.694083]
[1756523990888,0.06,205.69,205.68,5.004083]
[1756523992211,0.06,205.69,205.67,0.14216157]
[1756523992517,0.06,205.69,205.67,0.83216157]
[1756523993023,0.06,205.69,205.68,0.83216157]
[1756523997025,0.06,205.69,205.68,5.694083]
[1756523997429,0.06,205.69,205.68,0.83216157]
[1756523999222,0.06,205.69,205.68,5.694083]
[1756524000507,0.06,205.69,205.68,0.83216157]
[1756524001403,0.06,205.69,205.68,5.694083]
[1756524004618,0.06,205.69,205.68,23.89920296]
[1756524004801,0.06,205.69,205.68,62.79920296]
[1756524005721,0.06,205.69,205.68,67.60367091]